fUST/lending_fUST_20250627
["ID","MTS","AMOUNT","RATE_DAILY","PERIOD"]
[367990346,1750984251595,-460.0,0.00021137,2]
[367990347,1750984251605,-619.06,0.00021137,2]
[367990348,1750984251614,-447.10575592,0.00021137,2]
[367990349,1750984251623,-514.34440801,0.00021137,2]
[367990350,1750984251632,-460.0,0.00021137,2]
[367990351,1750984251642,-589.21,0.00021137,2]
[367990352,1750984251652,-460.0,0.00021137,2]
[367990353,1750984251661,-721.84,0.00021137,2]
[367990354,1750984251671,-460.0,0.00021137,2]
[367990355,1750984251680,-460.0,0.00021137,2]
[367990356,1750984251690,-795.49,0.00021137,2]
[367990357,1750984251699,-522.21769637,0.00021137,2]
[367990358,1750984251709,-490.12420443,0.00021137,2]
[367990359,1750984251718,-460.0,0.00021137,2]
[367990360,1750984251727,-460.0,0.00021137,2]
[367990361,1750984251736,-1109.85,0.00021137,2]
[367990362,1750984251746,-750.73,0.00021137,2]
[367990363,1750984251755,-1083.93,0.00021137,2]
[367990364,1750984251765,-500.0,0.00021137,2]
[367990365,1750984251774,-460.0,0.00021137,2]
[367990366,1750984251783,-460.0,0.00021137,2]
[367990367,1750984251793,-320.35433173,0.00021137,2]
[367990368,1750984251802,-990.75,0.00021137,2]
[367990369,1750984251811,-558.90183119,0.00021137,2]
[367990370,1750984251821,-387.342012,0.00021137,2]
[367990371,1750984251831,-387.342012,0.00021137,2]
[367990372,1750984251841,-460.0,0.00021138,2]
[367990373,1750984251850,-460.0,0.00021138,2]
[367990374,1750984251859,-400.0,0.00021138,2]
[367990375,1750984251868,-460.0,0.00021138,2]
[367990377,1750984251877,-1000.0,0.00021143,2]
[367990379,1750984251887,-153.0,0.00021178,2]
[367990381,1750984251896,-460.0,0.00021202,2]
[367990382,1750984251905,-275.78056959,0.00021202,2]
[367990384,1750984251914,-460.0,0.00021202,2]
[367990386,1750984251924,-460.0,0.00021202,2]
[367990388,1750984251933,-460.0,0.00021203,2]
[367990390,1750984251942,-440.0,0.00021203,2]
[367990392,1750984251951,-460.0,0.00021203,2]
[367990394,1750984251960,-460.0,0.00021203,2]
[367990396,1750984251969,-501.07,0.00021203,2]
[367990398,1750984251978,-538.91,0.00021203,2]
[367990400,1750984251988,-2288.39,0.00021203,2]
[367990402,1750984251997,-972.6,0.00021203,2]
[367990404,1750984252007,-1189.04,0.00021203,2]
[367990406,1750984252016,-749.13,0.00021203,2]
[367990408,1750984252025,-460.0,0.00021203,2]
[367990410,1750984252034,-460.0,0.00021203,2]
[367990412,1750984252043,-460.0,0.00021203,2]
[367990414,1750984252054,-2675.26,0.00021203,2]
[367990416,1750984252063,-460.0,0.00021203,2]
[367990419,1750984252073,-724.92,0.00021203,2]
[367990420,1750984252082,-3092.49,0.00021203,2]
[367990421,1750984252091,-702.58,0.00021203,2]
[367990422,1750984252100,-2425.21,0.00021203,2]
[367990423,1750984252109,-1965.68,0.00021203,2]
[367990424,1750984252119,-460.0,0.00021203,2]
[367990425,1750984252129,-460.0,0.00021203,2]
[367990426,1750984252138,-221.09097286,0.00021203,2]
[367990427,1750984252151,-642.19902714,0.00021203,2]
[367990428,1750984252160,-841.33,0.00021203,2]
[367990429,1750984252170,-797.33,0.00021203,2]
[367990430,1750984252179,-874.46,0.00021203,2]
[367990431,1750984252188,-460.0,0.00021203,2]
[367990432,1750984252197,-460.0,0.00021203,2]
[367990433,1750984252207,-349.48096678,0.00021203,2]
[367990434,1750984252221,-445.08903322,0.00021203,2]
[367990435,1750984252230,-460.0,0.00021206,2]
[367990436,1750984252239,-480.11,0.00021206,2]
[367990437,1750984252248,-460.0,0.00021206,2]
[367990438,1750984252258,-460.0,0.00021206,2]
[367990439,1750984252267,-460.0,0.00021206,2]
[367990440,1750984252276,-83.31063604,0.00021206,2]
[367990441,1750984252288,-376.68936396,0.00021206,2]
[367990442,1750984252298,-280.0,0.00021206,2]
[367990443,1750984252307,-679.86,0.00021206,2]
[367990444,1750984252317,-491.2,0.00021206,2]
[367990445,1750984252326,-340.97,0.00021206,2]
[367990446,1750984252335,-95.32434581,0.00021206,2]
[367990449,1750984252505,-460.0,0.00019988,2]
[367990451,1750984252514,-460.0,0.00020655,2]
[367990453,1750984252524,-460.0,0.00020965,2]
[367990455,1750984252534,-129.99310978,0.00021206,2]
[367990457,1750984252544,-111.28806378,0.00021206,2]
[367990487,1750984491278,152.779359,0.000229,31]
[367990488,1750984669131,175.696264,0.000229,31]
[367990489,1750984786773,175.696263,0.000229,31]
[367990491,1750984844240,173.715033,0.00013699,2]
[367990497,1750985124634,160.0,0.000161,2]
[367990498,1750985125544,160.0,0.000161,2]
[367990499,1750985349223,-191.563444,0.00019178,2]
[367990500,1750985349245,-401.1240083,0.00019549,2]
[367990501,1750985349265,-160.0,0.00019554,2]
[367990502,1750985349287,-350.47,0.00019639,3]
[367990503,1750985349308,-175.23,0.00019639,3]
[367990504,1750985349334,-525.73,0.00019639,3]
[367990505,1750985349357,-300.0,0.0001964,2]
[367990506,1750985349380,-500.0,0.00019641,2]
[367990507,1750985349402,-303.16649561,0.00019641,2]
[367990508,1750985349424,-500.0,0.00019641,2]
[367990509,1750985349449,-500.0,0.00019641,2]
[367990510,1750985349471,-500.0,0.00019641,2]
[367990511,1750985349497,-500.0,0.00019641,2]
[367990512,1750985349518,-174.243235,0.00019641,2]
[367990513,1750985349546,-500.0,0.00019641,2]
[367990514,1750985349570,-500.0,0.00019641,2]
[367990515,1750985349594,-500.0,0.00019641,2]
[367990516,1750985349616,-500.0,0.00019641,2]
[367990517,1750985349640,-500.0,0.00019641,2]
[367990518,1750985349665,-500.0,0.00019641,2]
[367990519,1750985349918,-500.0,0.00019641,2]
[367990520,1750985349944,-500.0,0.00019641,2]
[367990521,1750985349966,-500.0,0.00019641,2]
[367990522,1750985349987,-196.67444258,0.00019641,2]
[367990523,1750985350011,-500.0,0.00019641,2]
[367990524,1750985350035,-536.19237733,0.00019641,2]
[367990525,1750985350057,-500.0,0.00019641,2]
[367990526,1750985350079,-500.0,0.00019641,2]
[367990527,1750985350105,-500.0,0.00019641,2]
[367990528,1750985350127,-500.0,0.00019641,2]
[367990529,1750985350148,-500.0,0.00019641,2]
[367990530,1750985350170,-500.0,0.00019641,2]
[367990531,1750985350190,-629.65951422,0.00019641,2]
[367990532,1750985350214,-500.0,0.00019641,2]
[367990533,1750985350237,-500.0,0.00019641,2]
[367990534,1750985350258,-500.0,0.00019641,2]
[367990535,1750985350278,-313.33148062,0.00019641,2]
[367990536,1750985350299,-324.76662393,0.00019641,2]
[367990537,1750985350320,-500.0,0.00019641,2]
[367990538,1750985350341,-500.0,0.00019641,2]
[367990539,1750985350364,-500.0,0.00019641,2]
[367990540,1750985350386,-500.0,0.00019641,2]
[367990541,1750985350406,-500.0,0.00019641,2]
[367990542,1750985350429,-500.0,0.00019641,2]
[367990543,1750985350453,-500.0,0.00019641,2]
[367990544,1750985350474,-500.0,0.00019641,2]
[367990545,1750985350497,-500.0,0.00019641,2]
[367990546,1750985350519,-500.0,0.00019641,2]
[367990547,1750985350541,-500.0,0.00019641,2]
[367990548,1750985350565,-500.0,0.00019641,2]
[367990549,1750985350588,-500.0,0.00019641,2]
[367990550,1750985350611,-500.0,0.00019641,2]
[367990551,1750985350633,-500.0,0.00019641,2]
[367990552,1750985350664,-500.0,0.00019641,2]
[367990553,1750985350687,-500.0,0.00019641,2]
[367990554,1750985350710,-500.0,0.00019641,2]
[367990555,1750985350733,-500.0,0.00019641,2]
[367990556,1750985350757,-500.0,0.00019641,2]
[367990557,1750985350779,-500.0,0.00019641,2]
[367990558,1750985350801,-500.0,0.00019641,2]
[367990559,1750985350824,-340.6898722,0.00019641,2]
[367990560,1750985350846,-500.0,0.00019641,2]
[367990561,1750985350867,-500.0,0.00019641,2]
[367990562,1750985350888,-500.0,0.00019641,2]
[367990563,1750985350910,-500.0,0.00019641,2]
[367990564,1750985350932,-500.0,0.00019641,2]
[367990565,1750985350955,-500.0,0.00019641,2]
[367990566,1750985350976,-500.0,0.00019641,2]
[367990567,1750985350997,-500.0,0.00019641,2]
[367990568,1750985351019,-500.0,0.00019641,2]
[367990569,1750985351040,-500.0,0.00019641,2]
[367990570,1750985351061,-500.0,0.00019641,2]
[367990571,1750985351083,-500.0,0.00019641,2]
[367990572,1750985351105,-500.0,0.00019641,2]
[367990573,1750985351128,-500.0,0.00019641,2]
[367990574,1750985351150,-500.0,0.00019641,2]
[367990575,1750985351172,-500.0,0.00019641,2]
[367990576,1750985351195,-500.0,0.00019641,2]
[367990577,1750985351218,-500.0,0.00019641,2]
[367990578,1750985351240,-500.0,0.00019641,2]
[367990579,1750985351262,-500.0,0.00019641,2]
[367990580,1750985351284,-500.0,0.00019641,2]
[367990581,1750985351306,-500.0,0.00019641,2]
[367990582,1750985351327,-500.0,0.00019641,2]
[367990583,1750985351351,-500.0,0.00019641,2]
[367990584,1750985351373,-500.0,0.00019641,2]
[367990585,1750985351395,-500.0,0.00019641,2]
[367990586,1750985351418,-500.0,0.00019641,2]
[367990587,1750985351439,-500.0,0.00019641,2]
[367990588,1750985351461,-500.0,0.00019641,2]
[367990589,1750985351483,-500.0,0.00019641,2]
[367990590,1750985351505,-500.0,0.00019641,2]
[367990591,1750985351528,-500.0,0.00019641,2]
[367990592,1750985351553,-500.0,0.00019641,2]
[367990593,1750985351575,-500.0,0.00019641,2]
[367990594,1750985351599,-384.06898721,0.00019641,2]
[367990595,1750985351622,-500.0,0.00019641,2]
[367990596,1750985351644,-500.0,0.00019641,2]
[367990597,1750985351674,-500.0,0.00019641,2]
[367990598,1750985351697,-500.0,0.00019641,2]
[367990599,1750985351719,-500.0,0.00019641,2]
[367990600,1750985351742,-500.0,0.00019641,2]
[367990601,1750985351764,-500.0,0.00019641,2]
[367990602,1750985351787,-500.0,0.00019641,2]
[367990603,1750985351809,-500.0,0.00019641,2]
[367990604,1750985351831,-500.0,0.00019641,2]
[367990605,1750985351853,-500.0,0.00019641,2]
[367990606,1750985351876,-500.0,0.00019641,2]
[367990607,1750985351897,-460.0,0.00019641,2]
[367990608,1750985351917,-460.0,0.00019641,2]
[367990609,1750985351939,-500.00000001,0.00019641,2]
[367990610,1750985351960,-46482.51722203,0.00019642,2]
[367990611,1750985351980,-300.0,0.00019642,2]
[367990612,1750985352001,-1200.0,0.00019642,2]
[367990613,1750985352021,-887.0,0.00019642,2]
[367990614,1750985352041,-460.0,0.00019642,2]
[367990615,1750985352062,-460.0,0.00019642,2]
[367990616,1750985352082,-450.16993362,0.00019642,2]
[367990617,1750985352469,-9.83006638,0.00019642,2]
[367990618,1750985352489,-460.0,0.00019642,2]
[367990619,1750985352509,-430.0,0.00019642,2]
[367990620,1750985352530,-460.0,0.00019642,2]
[367990621,1750985352550,-460.0,0.00019642,2]
[367990622,1750985352570,-460.0,0.00019642,2]
[367990623,1750985352591,-484.57,0.00019642,2]
[367990624,1750985352613,-496.21,0.00019642,2]
[367990625,1750985352634,-739.56,0.00019642,2]
[367990626,1750985352659,-2888.24,0.00019642,2]
[367990627,1750985352679,-460.0,0.00019643,2]
[367990628,1750985352701,-460.0,0.00019643,2]
[367990629,1750985352720,-460.0,0.00019643,2]
[367990630,1750985352742,-552.69705469,0.00019643,2]
[367990631,1750985352763,-460.0,0.00019643,2]
[367990632,1750985352783,-460.0,0.00019643,2]
[367990633,1750985352802,-460.0,0.00019643,2]
[367990634,1750985352822,-460.0,0.00019643,2]
[367990635,1750985352841,-290.31651181,0.00019643,2]
[367990636,1750985352862,-460.0,0.00019643,2]
[367990637,1750985352881,-460.0,0.00019643,2]
[367990638,1750985352900,-460.0,0.00019643,2]
[367990639,1750985352920,-298.2990555,0.00019643,2]
[367990640,1750985353607,-431.33261472,0.00019541,2]
[367990641,1750985353628,-1000.0,0.00019641,2]
[367990642,1750985353652,-161.7009445,0.00019643,2]
[367990643,1750985353673,-460.0,0.00019643,2]
[367990644,1750985353693,-460.0,0.00019643,2]
[367990645,1750985353713,-460.0,0.00019643,2]
[367990646,1750985353733,-491.34396228,0.00019643,2]
[367990647,1750985353754,-420.0,0.00019643,2]
[367990648,1750985353774,-460.0,0.00019643,2]
[367990649,1750985353795,-460.0,0.00019643,2]
[367990650,1750985353815,-460.0,0.00019643,2]
[367990651,1750985353836,-460.0,0.00019643,2]
[367990652,1750985353856,-431.55817477,0.00019643,2]
[367990653,1750985353877,-441.12532295,0.00019643,2]
[367990654,1750985353897,-460.0,0.00019643,2]
[367990655,1750985353917,-460.0,0.00019643,2]
[367990656,1750985353936,-460.0,0.00019643,2]
[367990657,1750985353956,-460.0,0.00019643,2]
[367990658,1750985353975,-460.0,0.00019643,2]
[367990659,1750985353995,-314.52947932,0.00019643,2]
[367990660,1750985354015,-460.0,0.00019643,2]
[367990661,1750985354034,-460.0,0.00019643,2]
[367990662,1750985354054,-460.0,0.00019643,2]
[367990663,1750985354074,-460.0,0.00019643,2]
[367990664,1750985354096,-460.0,0.00019643,2]
[367990665,1750985354116,-460.0,0.00019643,2]
[367990666,1750985354136,-460.0,0.00019643,2]
[367990667,1750985354155,-460.0,0.00019643,2]
[367990668,1750985354175,-460.0,0.00019643,2]
[367990669,1750985354195,-460.0,0.00019643,2]
[367990670,1750985354215,-460.0,0.00019643,2]
[367990671,1750985354234,-552.2289873,0.00019643,2]
[367990672,1750985354254,-460.0,0.00019643,2]
[367990673,1750985354274,-460.0,0.00019643,2]
[367990674,1750985354293,-460.0,0.00019643,2]
[367990675,1750985354314,-460.0,0.00019643,2]
[367990676,1750985354333,-460.0,0.00019643,2]
[367990677,1750985354353,-460.0,0.00019643,2]
[367990678,1750985354373,-460.0,0.00019643,2]
[367990679,1750985354393,-460.0,0.00019643,2]
[367990680,1750985354413,-460.0,0.00019643,2]
[367990681,1750985354433,-460.0,0.00019643,2]
[367990682,1750985354454,-460.0,0.00019644,2]
[367990683,1750985354474,-460.0,0.00019644,2]
[367990684,1750985354495,-460.0,0.00019644,2]
[367990685,1750985354515,-460.0,0.00019644,2]
[367990686,1750985354535,-460.0,0.00019644,2]
[367990687,1750985354556,-460.0,0.00019644,2]
[367990688,1750985354577,-460.0,0.00019644,2]
[367990689,1750985354599,-205.93978856,0.00019644,2]
[367990690,1750985354622,-150.06763191,0.00019644,2]
[367990691,1750985354643,-460.0,0.00019644,2]
[367990692,1750985354667,-22.47540888,0.00019644,2]
[367990693,1750985355086,-437.52459112,0.00019644,2]
[367990694,1750985355108,-460.0,0.00019644,2]
[367990695,1750985355130,-460.0,0.00019644,2]
[367990696,1750985355150,-67.1188421,0.00019644,2]
[367990747,1750985432401,-1707.42,0.000196,2]
[367990749,1750985432410,-525.71,0.00019638,3]
[367990751,1750985432420,-175.23,0.00019639,3]
[367990753,1750985432429,-300.0,0.0001964,2]
[367990755,1750985432439,-300.0,0.0001964,2]
[367990757,1750985432449,-1200.0,0.0001964,2]
[367990759,1750985432458,-460.0,0.00019641,2]
[367990761,1750985432467,-460.0,0.00019641,2]
[367990763,1750985432477,-460.0,0.00019641,2]
[367990765,1750985432486,-460.0,0.00019641,2]
[367990767,1750985432495,-460.0,0.00019641,2]
[367990769,1750985432504,-460.0,0.00019641,2]
[367990771,1750985432513,-460.0,0.00019641,2]
[367990773,1750985432523,-460.0,0.00019641,2]
[367990775,1750985432532,-460.0,0.00019641,2]
[367990777,1750985432541,-383.112,0.00019641,2]
[367990779,1750985432550,-476.49,0.00019641,2]
[367990781,1750985432559,-460.0,0.00019641,2]
[367990783,1750985432569,-460.0,0.00019641,2]
[367990785,1750985432578,-460.0,0.00019641,2]
[367990787,1750985432588,-218.80401908,0.00019642,2]
[367990789,1750985432597,-392.8811579,0.00019642,2]
[367990791,1750985432606,-2989.15,0.00019642,2]
[367990793,1750985432615,-543.77,0.00019642,2]
[367990795,1750985432625,-460.0,0.00019642,2]
[367990797,1750985432634,-3488.98,0.00019642,2]
[367990799,1750985432643,-460.0,0.00019642,2]
[367990801,1750985432653,-417.62751878,0.00019643,2]
[367990803,1750985432664,-460.0,0.00019643,2]
[367990805,1750985432673,-460.0,0.00019643,2]
[367990807,1750985432682,-460.0,0.00019643,2]
[367990809,1750985432692,-460.0,0.00019643,2]
[367990811,1750985432701,-460.0,0.00019643,2]
[367990813,1750985432710,-460.0,0.00019643,2]
[367990815,1750985432720,-460.0,0.00019643,2]
[367990832,1750985432884,-460.0,0.00019643,2]
[367990833,1750985432894,-519.49324381,0.00019643,2]
[367990835,1750985432905,-460.0,0.00019643,2]
[367990837,1750985432914,-460.0,0.00019643,2]
[367990839,1750985432924,-373.87027688,0.00019643,2]
[367990841,1750985432933,-460.0,0.00019643,2]
[367990843,1750985432942,-460.0,0.00019643,2]
[367990846,1750985432952,-477.33,0.00019643,2]
[367990847,1750985432962,-460.0,0.00019643,2]
[367990849,1750985432971,-460.0,0.00019643,2]
[367990851,1750985432980,-460.0,0.00019643,2]
[367990853,1750985432989,-460.0,0.00019643,2]
[367990855,1750985432999,-460.0,0.00019643,2]
[367990857,1750985433008,-460.0,0.00019643,2]
[367990859,1750985433018,-460.0,0.00019643,2]
[367990861,1750985433027,-460.0,0.00019643,2]
[367990863,1750985433036,-460.0,0.00019643,2]
[367990865,1750985433048,-460.0,0.00019643,2]
[367990867,1750985433057,-460.0,0.00019643,2]
[367990869,1750985433067,-460.0,0.00019643,2]
[367990871,1750985433076,-460.0,0.00019643,2]
[367990873,1750985433086,-460.0,0.00019643,2]
[367990875,1750985433096,-870.19,0.00019644,2]
[367990877,1750985433105,-490.71,0.00019644,2]
[367990879,1750985433115,-674.66,0.00019644,2]
[367990881,1750985433124,-263.68309517,0.00019644,2]
[367990883,1750985433136,-254.87,0.00019644,2]
[367990888,1750985433168,-1836.47690483,0.00019644,2]
[367990889,1750985433178,-460.0,0.00019644,2]
[367990891,1750985433187,-460.0,0.00019644,2]
[367990893,1750985433198,-1040.41,0.00019644,2]
[367990894,1750985433207,-460.0,0.00019644,2]
[367990895,1750985433216,-2625.1,0.00019644,2]
[367990896,1750985433226,-2936.96,0.00019644,2]
[367990897,1750985433236,-460.0,0.00019644,2]
[367990898,1750985433246,-661.24,0.00019644,2]
[367990899,1750985433255,-460.0,0.00019644,2]
[367990900,1750985433265,-1924.14,0.00019644,2]
[367990901,1750985433274,-460.0,0.00019644,2]
[367990902,1750985433284,-607.15830734,0.00019644,2]
[367990903,1750985433297,-153.15169266,0.00019644,2]
[367990904,1750985433306,-911.06,0.00019644,2]
[367990905,1750985433316,-460.0,0.00019644,2]
[367990906,1750985433326,-865.11,0.00019644,2]
[367990907,1750985433335,-859.44,0.00019644,2]
[367990908,1750985433345,-2585.81,0.00019644,2]
[367990909,1750985433355,-460.0,0.00019644,2]
[367990910,1750985433364,-460.0,0.00019644,2]
[367990911,1750985433374,-460.0,0.00019644,2]
[367990912,1750985433383,-460.0,0.00019644,2]
[367990913,1750985433393,-460.0,0.00019644,2]
[367990914,1750985433402,-742.21,0.00019644,2]
[367990915,1750985433413,-460.0,0.00019644,2]
[367990916,1750985433422,-460.0,0.00019644,2]
[367990917,1750985433432,-1135.56,0.00019644,2]
[367990918,1750985433441,-746.24,0.00019644,2]
[367990919,1750985433451,-460.0,0.00019644,2]
[367990920,1750985433461,-460.0,0.00019644,2]
[367990921,1750985433471,-460.0,0.00019644,2]
[367990922,1750985433481,-460.0,0.00019644,2]
[367990923,1750985433491,-500.0,0.00019645,2]
[367990924,1750985433501,-460.0,0.00019645,2]
[367990925,1750985433511,-500.0,0.00019645,2]
[367990926,1750985433521,-500.0,0.00019645,2]
[367990927,1750985433532,-460.0,0.00019645,2]
[367990928,1750985433541,-460.0,0.00019645,2]
[367990929,1750985433551,-460.0,0.00019645,2]
[367990930,1750985433562,-460.0,0.00019645,2]
[367990931,1750985433572,-460.0,0.00019645,2]
[367990932,1750985433582,-460.0,0.00019645,2]
[367990933,1750985433593,-460.0,0.00019645,2]
[367990934,1750985433603,-460.0,0.00019645,2]
[367990935,1750985433613,-460.0,0.00019645,2]
[367990936,1750985433622,-460.0,0.00019645,2]
[367990937,1750985433631,-462.94352623,0.00019645,2]
[367990938,1750985433641,-460.0,0.00019645,2]
[367990939,1750985433651,-639.43,0.00019645,2]
[367990940,1750985433662,-460.0,0.00019645,2]
[367990941,1750985433672,-506.47,0.00019645,2]
[367990942,1750985433681,-460.0,0.00019645,2]
[367990943,1750985433691,-460.0,0.00019645,2]
[367990944,1750985433701,-460.0,0.00019645,2]
[367990945,1750985433711,-460.0,0.00019645,2]
[367990946,1750985433721,-460.0,0.00019645,2]
[367990947,1750985433731,-460.0,0.00019645,2]
[367990948,1750985433741,-460.0,0.00019645,2]
[367990949,1750985433751,-460.0,0.00019645,2]
[367990950,1750985433761,-500.0,0.00019645,2]
[367990951,1750985433771,-500.0,0.00019645,2]
[367990952,1750985433781,-460.0,0.00019645,2]
[367990953,1750985433791,-460.0,0.00019645,2]
[367990954,1750985433800,-460.0,0.00019645,2]
[367990955,1750985433810,-460.0,0.00019645,2]
[367990956,1750985433820,-460.0,0.00019645,2]
[367990957,1750985433834,-460.0,0.00019645,2]
[367990958,1750985433843,-460.0,0.00019645,2]
[367990959,1750985433854,-460.0,0.00019645,2]
[367990960,1750985433863,-460.0,0.00019645,2]
[367990961,1750985433873,-460.0,0.00019645,2]
[367990962,1750985433883,-460.0,0.00019645,2]
[367990963,1750985433892,-460.0,0.00019645,2]
[367990964,1750985433902,-472.22,0.00019645,2]
[367990965,1750985433914,-460.0,0.00019645,2]
[367990966,1750985433924,-460.0,0.00019645,2]
[367990967,1750985433934,-460.0,0.00019645,2]
[367990968,1750985433943,-460.0,0.00019645,2]
[367990969,1750985433952,-460.0,0.00019645,2]
[367990970,1750985433962,-500.0,0.00019645,2]
[367990971,1750985433972,-460.0,0.00019645,2]
[367990972,1750985433981,-832.88,0.00019645,2]
[367990973,1750985433990,-460.0,0.00019645,2]
[367990974,1750985434000,-531.59,0.00019645,2]
[367990975,1750985434009,-431.23646066,0.00019645,2]
[367990976,1750985434018,-460.0,0.00019645,2]
[367990977,1750985434028,-904.59,0.00019645,2]
[367990978,1750985434037,-1041.25,0.00019645,2]
[367990979,1750985434047,-460.0,0.00019645,2]
[367990980,1750985434056,-636.67,0.00019645,2]
[367990981,1750985434065,-719.61,0.00019645,2]
[367990982,1750985434075,-460.0,0.00019645,2]
[367990983,1750985434084,-1520.21,0.00019645,2]
[367990984,1750985434093,-460.0,0.00019645,2]
[367990985,1750985434102,-486.19,0.00019645,2]
[367990986,1750985434112,-460.0,0.00019645,2]
[367990987,1750985434121,-952.51,0.00019645,2]
[367990988,1750985434130,-389.75292689,0.00019645,2]
[367990989,1750985434345,-70.24707311,0.00019645,2]
[367990990,1750985434355,-460.0,0.00019645,2]
[367990991,1750985434365,-460.0,0.00019645,2]
[367990992,1750985434375,-460.0,0.00019645,2]
[367990993,1750985434384,-743.46,0.00019645,2]
[367990994,1750985434394,-737.47,0.00019645,2]
[367990995,1750985434404,-905.43,0.00019645,2]
[367990996,1750985434415,-460.0,0.00019645,2]
[367990997,1750985434425,-460.0,0.00019645,2]
[367990998,1750985434434,-460.0,0.00019645,2]
[367990999,1750985434443,-460.0,0.00019645,2]
[367991000,1750985434453,-668.6,0.00019645,2]
[367991001,1750985434463,-460.0,0.00019645,2]
[367991002,1750985434472,-847.36,0.00019645,2]
[367991003,1750985434481,-460.0,0.00019645,2]
[367991004,1750985434490,-630.78,0.00019645,2]
[367991005,1750985434500,-460.0,0.00019645,2]
[367991006,1750985434509,-460.0,0.00019645,2]
[367991007,1750985434519,-1361.83,0.00019645,2]
[367991008,1750985434528,-460.0,0.00019645,2]
[367991009,1750985434537,-460.0,0.00019645,2]
[367991010,1750985434547,-460.0,0.00019646,2]
[367991011,1750985434556,-187.20797301,0.00019646,2]
[367991059,1750985438424,-336.26733391,0.00019641,2]
[367991060,1750985438438,-123.73266609,0.00019641,2]
[367991061,1750985438447,-460.0,0.00019641,2]
[367991062,1750985438457,-470.26,0.00019642,2]
[367991063,1750985438467,-460.0,0.00019643,2]
[367991064,1750985438476,-53.30817951,0.00019643,2]
[367991065,1750985438488,-203.72865167,0.00019643,2]
[367991066,1750985438498,-236.62883491,0.00019643,2]
[367991067,1750985438508,-170.68804193,0.00019643,2]
[367991068,1750985438518,-6.93857375,0.00019643,2]
[367991069,1750985438751,-292.69191987,0.00019643,2]
[367991070,1750985438761,-460.0,0.00019645,2]
[367991071,1750985438771,-272.79202699,0.00019646,2]
[367991072,1750985438780,-460.0,0.00019646,2]
[367991073,1750985438790,-460.0,0.00019646,2]
[367991074,1750985438800,-393.8251541,0.00019646,2]
[367991075,1750985438810,-460.0,0.00019646,2]
[367991076,1750985438819,-270.49999992,0.00019646,2]
[367991077,1750985438830,-460.0,0.00019646,2]
[367991078,1750985438843,-460.0,0.00019646,2]
[367991079,1750985438855,-460.0,0.00019646,2]
[367991080,1750985438864,-460.0,0.00019646,2]
[367991081,1750985438874,-460.0,0.00019646,2]
[367991082,1750985438885,-460.0,0.00019646,2]
[367991083,1750985438894,-460.0,0.00019646,2]
[367991084,1750985438904,-460.0,0.00019646,2]
[367991085,1750985438917,-500.0,0.00019646,2]
[367991086,1750985438926,-500.0,0.00019646,2]